bitfinex-derivatives/quotes_BTCF0:USTF0_20230901
["timestamp","ask_amount","ask_price","bid_price","bid_amount"]
[1693548949402,0.25458554,26044.0,26043.0,0.78611258]
[1693548950401,0.25458554,26044.0,26043.0,0.73142351]
[1693548950801,0.25458554,26044.0,26043.0,0.78611258]
[1693548950995,0.25458554,26044.0,26043.0,0.73142351]
[1693548951302,0.25458554,26044.0,26043.0,0.78611258]
[1693548952002,0.25458554,26044.0,26043.0,0.73142351]
[1693548952402,0.25458554,26044.0,26043.0,0.78611258]
[1693548952703,0.25458554,26044.0,26043.0,0.73142351]
[1693548953402,0.06254837,26044.0,26043.0,0.6546]
[1693548953708,0.06254837,26044.0,26043.0,0.70928907]
[1693548954610,0.06254837,26044.0,26043.0,0.73142351]
[1693548955402,0.06254837,26044.0,26043.0,0.78611258]
[1693548956313,0.06254837,26044.0,26043.0,0.73142351]
[1693548957413,0.06254837,26044.0,26043.0,0.6546]
[1693548957613,0.55647744,26044.0,26043.0,0.074]
[1693548958715,0.55347744,26044.0,26043.0,0.037]
[1693548959015,0.55547744,26044.0,26043.0,0.058]
[1693548959715,0.55547744,26044.0,26043.0,0.057]
[1693548960414,0.55247744,26044.0,26043.0,0.021]
[1693548960615,0.55447744,26044.0,26043.0,0.044]
[1693548961710,0.55447744,26044.0,26043.0,0.00735125]
[1693548968019,0.61153554,26044.0,26043.0,0.00735125]
[1693548968916,1.02693554,26044.0,26043.0,0.00735125]
[1693548973417,1.00693554,26044.0,26043.0,0.00735125]
[1693548975425,1.19879564,26044.0,26043.0,0.00735125]
[1693548979229,1.00693554,26044.0,26043.0,0.00735125]
[1693548979428,1.19879564,26044.0,26043.0,0.00735125]
[1693548985234,1.00693554,26044.0,26043.0,0.00735125]
[1693548995140,1.00309554,26044.0,26043.0,0.00735125]
[1693549004747,1.2334289,26044.0,26043.0,0.00735125]
[1693549010256,1.00309554,26044.0,26043.0,0.00735125]
[1693549024065,1.00693554,26044.0,26043.0,0.00735125]
[1693549024368,1.2372689,26044.0,26043.0,0.00735125]
[1693549034179,1.2372689,26044.0,26039.0,0.11523885]
[1693549034180,0.6,26042.0,26039.0,0.03011947]
[1693549034485,0.6,26042.0,26036.0,0.11523885]
[1693549034486,0.01899,26039.0,26036.0,0.11523885]
[1693549034675,0.4154,26037.0,26036.0,0.13523885]
[1693549035076,0.52663744,26037.0,26036.0,0.13523885]
[1693549036194,0.52963744,26037.0,26036.0,0.17123885]
[1693549036482,0.52963744,26037.0,26036.0,0.19723885]
[1693549036483,0.53363744,26037.0,26036.0,0.19723885]
[1693549040384,0.53363744,26037.0,26036.0,0.082]
[1693549041684,0.53363744,26037.0,26036.0,0.062]
[1693549041884,0.53363744,26037.0,26036.0,0.082]
[1693549043683,0.53363744,26037.0,26036.0,0.062]
[1693549046583,0.59058014,26037.0,26036.0,0.062]
[1693549048684,0.62168816,26037.0,26036.0,0.062]
[1693549049289,0.64067816,26037.0,26036.0,0.062]
[1693549050191,0.62168816,26037.0,26036.0,0.062]
[1693549050390,0.64067816,26037.0,26036.0,0.062]
[1693549055696,0.62168816,26037.0,26036.0,0.062]
[1693549055897,0.64067816,26037.0,26036.0,0.062]
[1693549058701,0.64168816,26037.0,26036.0,0.062]
[1693549058992,0.64067816,26037.0,26036.0,0.062]
[1693549062197,0.66451816,26037.0,26036.0,0.062]
[1693549062705,0.81901816,26037.0,26036.0,0.062]
[1693549068206,1.01085476,26037.0,26036.0,1e-08]
[1693549069113,0.81901816,26037.0,26036.0,1e-08]
[1693549069314,1.01073898,26037.0,26036.0,1e-08]
[1693549069615,1.01173898,26037.0,26036.0,1e-08]
[1693549070002,1.01173898,26037.0,26032.0,0.1621]
[1693549070003,0.41924,26036.0,26032.0,0.1621]
[1693549070202,0.4154,26033.0,26032.0,0.1621]
[1693549070405,0.4154,26033.0,26030.0,0.11512672]
[1693549070601,0.4154,26031.0,26030.0,0.11512672]
[1693549071012,0.4154,26031.0,26030.0,0.27772672]
[1693549071312,0.52663744,26031.0,26030.0,0.27772672]
[1693549071510,0.52663744,26031.0,26030.0,0.1626]
[1693549071910,0.52663744,26031.0,26030.0,0.1826]
[1693549073017,0.53063744,26031.0,26030.0,0.1826]
[1693549073219,0.53363744,26031.0,26030.0,0.1826]
[1693549073812,0.47894837,26031.0,26030.0,0.1826]
[1693549076513,0.47894837,26031.0,26030.0,0.1626]
[1693549076814,0.47894837,26031.0,26030.0,0.1826]
[1693549077017,0.53363744,26031.0,26030.0,0.1826]
[1693549077213,0.47894837,26031.0,26030.0,0.1826]
[1693549077614,0.47894837,26031.0,26030.0,0.1626]
[1693549077815,0.47894837,26031.0,26030.0,0.1826]
[1693549078314,0.53363744,26031.0,26030.0,0.1826]
[1693549078514,0.53363744,26031.0,26030.0,0.29772672]
[1693549078915,0.47894837,26031.0,26030.0,0.29772672]
[1693549079515,0.47894837,26031.0,26030.0,0.27772672]
[1693549079813,0.53363744,26031.0,26030.0,0.29772672]
[1693549080319,0.47894837,26031.0,26030.0,0.29772672]
[1693549080517,0.47894837,26031.0,26030.0,0.27772672]
[1693549080914,0.47894837,26031.0,26030.0,0.1626]
[1693549081416,0.53363744,26031.0,26030.0,0.1626]
[1693549083119,0.47894837,26031.0,26030.0,0.1626]
[1693549083415,0.4224,26031.0,26030.0,0.23914838]
[1693549083621,0.03725256,26031.0,26030.0,0.7696751]
[1693549084018,0.03725256,26031.0,26030.0,0.82436417]
[1693549091023,0.03725256,26031.0,26030.0,0.80436417]
[1693549091232,0.03725256,26031.0,26030.0,0.82436417]
[1693549094539,0.03725256,26031.0,26030.0,0.80436417]
[1693549098739,0.05624256,26031.0,26030.0,0.80436417]
[1693549099243,0.03725256,26031.0,26030.0,0.80436417]
[1693549099842,0.05624256,26031.0,26030.0,0.80436417]
[1693549104350,0.05624256,26031.0,26030.0,0.68923745]
[1693549108845,0.05624256,26031.0,26030.0,0.80446776]
[1693549109552,0.05624256,26031.0,26030.0,0.68923745]
[1693549113453,0.05624256,26031.0,26030.0,1.09701426]
[1693549122455,0.05624256,26031.0,26030.0,1.04046588]
[1693549123163,0.05624256,26031.0,26030.0,1.09701426]
[1693549123463,0.06008256,26031.0,26030.0,1.09701426]
[1693549124055,0.21408256,26031.0,26030.0,1.09701426]
[1693549125459,0.21408256,26031.0,26030.0,1.04232519]
[1693549125658,0.21408256,26031.0,26030.0,1.09701426]
[1693549126358,0.21408256,26031.0,26030.0,0.68923745]
[1693549127963,0.21408256,26031.0,26030.0,0.63454838]
[1693549128762,0.21408256,26031.0,26030.0,0.68923745]
[1693549130365,0.21408256,26031.0,26030.0,0.63454838]
[1693549130761,0.21408256,26031.0,26030.0,0.68923745]
[1693549131165,0.21408256,26031.0,26030.0,0.63454838]
[1693549131365,0.21408256,26031.0,26030.0,0.68923745]
[1693549131764,0.21408256,26031.0,26030.0,0.63454838]
[1693549132062,0.21408256,26031.0,26030.0,1.09701839]
[1693549134270,0.21408256,26031.0,26030.0,1.04232932]
[1693549134768,0.21408256,26031.0,26030.0,1.09701839]
[1693549135070,0.21408256,26031.0,26030.0,1.04232932]
[1693549135266,0.21408256,26031.0,26030.0,0.63454838]
[1693549135667,0.21408256,26031.0,26030.0,0.4154]
[1693549135668,0.32532,26031.0,26030.0,0.4154]
[1693549136565,0.27063093,26031.0,26030.0,0.47008907]
[1693549137661,0.27063093,26031.0,26030.0,0.4154]
[1693549140063,0.32532,26031.0,26030.0,0.4154]
[1693549140372,0.74072,26031.0,26029.0,0.5689023]
[1693549140563,0.4154,26030.0,26029.0,0.5689023]
[1693549140763,0.47194837,26030.0,26029.0,0.82319106]
[1693549140965,0.49093837,26030.0,26029.0,0.82319106]
[1693549141353,0.4154,26030.0,26029.0,0.87973944]
[1693549141554,0.43439,26030.0,26029.0,0.87973944]
[1693549141859,0.54962744,26030.0,26029.0,0.82340187]
[1693549142060,0.49493837,26030.0,26029.0,0.82340187]
[1693549142261,0.49893837,26030.0,26029.0,0.82340187]
[1693549142861,0.49893837,26030.0,26029.0,0.87809094]
[1693549143061,0.44239,26030.0,26029.0,0.82340187]
[1693549144665,0.44239,26030.0,26029.0,0.93463932]
[1693549144871,0.44239,26030.0,26029.0,0.87995025]
[1693549145274,0.49893837,26030.0,26029.0,0.82340187]
[1693549146973,0.08353837,26030.0,26029.0,0.56911317]
[1693549148173,0.08353837,26030.0,26029.0,0.62566155]
[1693549148474,0.02699,26030.0,26029.0,0.47194838]
[1693549149059,0.08353837,26030.0,26029.0,0.4154]
[1693549149263,0.13822744,26030.0,26029.0,0.4154]
[1693549149463,0.08353837,26030.0,26029.0,0.4154]
[1693549150074,0.11923744,26030.0,26029.0,0.4154]
[1693549150275,0.08353837,26030.0,26029.0,0.4154]
[1693549150478,0.06454837,26030.0,26029.0,0.4154]
[1693549151177,0.08353837,26030.0,26029.0,0.4154]
[1693549151370,0.13822744,26030.0,26029.0,0.4154]
[1693549151571,0.08353837,26030.0,26029.0,0.4154]
[1693549151876,0.13822744,26030.0,26029.0,0.4154]
[1693549152175,0.08353837,26030.0,26029.0,0.4154]
[1693549152378,0.13822744,26030.0,26029.0,0.4154]
[1693549152576,0.08353837,26030.0,26029.0,0.4154]
[1693549153977,0.08353837,26030.0,26029.0,0.82340239]
[1693549154677,0.13822744,26030.0,26029.0,0.82340239]
[1693549154876,0.08353837,26030.0,26029.0,0.82340239]
[1693549155572,0.13822744,26030.0,26029.0,0.82340239]
[1693549155776,0.08353837,26030.0,26029.0,0.82340239]
[1693549156673,0.15822744,26030.0,26029.0,0.82340239]
[1693549157581,0.15822744,26030.0,26029.0,0.56911317]
[1693549157879,0.04699,26030.0,26029.0,0.56911317]
[1693549158281,0.10167907,26030.0,26029.0,0.56911317]
[1693549158483,0.04699,26030.0,26029.0,0.62566155]
[1693549158981,0.10167907,26030.0,26029.0,0.56911317]
[1693549159182,0.15822744,26030.0,26029.0,0.56911317]
[1693549159580,0.15822744,26030.0,26029.0,0.4154]
[1693549159981,0.10167907,26030.0,26029.0,0.4154]
[1693549160183,0.10353837,26030.0,26029.0,0.4154]
[1693549162286,0.08353837,26030.0,26029.0,0.4154]
[1693549162492,0.10353837,26030.0,26029.0,0.4154]
[1693549163386,0.02699,26030.0,26029.0,0.4154]
[1693549163586,0.08167907,26030.0,26029.0,0.4154]
[1693549163791,0.02699,26030.0,26029.0,0.47008907]
[1693549164088,0.02699,26030.0,26029.0,0.4154]
[1693549164789,0.02699,26030.0,26029.0,0.52663745]
[1693549168492,0.02699,26030.0,26029.0,0.47194838]
[1693549168695,0.02699,26030.0,26029.0,0.52663745]
[1693549168992,0.02699,26030.0,26029.0,0.68035062]
[1693549169195,0.02699,26030.0,26029.0,0.93464227]
[1693549171699,0.02699,26030.0,26029.0,0.8799532]
[1693549171997,0.02699,26030.0,26029.0,0.93464227]
[1693549176993,0.44239,26030.0,26029.0,0.52663745]
[1693549178203,0.44239,26030.0,26029.0,0.47194838]
[1693549182717,0.49707907,26030.0,26029.0,0.47194838]
[1693549183113,0.44239,26030.0,26029.0,0.47194838]
[1693549183312,0.49707907,26030.0,26029.0,0.47194838]
[1693549183518,0.44239,26030.0,26029.0,0.47194838]
[1693549183904,0.49707907,26030.0,26029.0,0.47194838]
[1693549184106,0.49707907,26030.0,26029.0,0.87995368]
[1693549184514,0.44239,26030.0,26029.0,0.87995368]
[1693549186419,0.44239,26030.0,26029.0,0.87997912]
[1693549189417,0.44239,26030.0,26029.0,0.93466819]
[1693549189618,0.44239,26030.0,26029.0,0.87997912]
[1693549193116,0.55362744,26030.0,26029.0,0.82343074]
[1693549194226,0.49893837,26030.0,26029.0,0.82343074]
[1693549195021,0.55362744,26030.0,26029.0,0.82343074]
[1693549195823,0.008,26030.0,26029.0,0.87997912]
[1693549196525,0.008,26030.0,26029.0,0.93466819]
[1693549198928,0.44239,26030.0,26029.0,0.87997912]
[1693549199225,0.44239,26030.0,26029.0,0.93466819]
[1693549199621,0.44239,26030.0,26029.0,0.87997912]
[1693549199822,0.44239,26030.0,26029.0,0.93466819]
[1693549200321,0.4234,26030.0,26029.0,0.87997912]
[1693549200520,0.44239,26030.0,26029.0,0.87997912]
[1693549201027,0.44239,26030.0,26029.0,0.93466819]
[1693549201233,0.4234,26030.0,26029.0,0.87997912]
[1693549201526,0.44239,26030.0,26029.0,0.87997912]
[1693549202315,0.4234,26030.0,26029.0,0.82343074]
[1693549202526,0.49707907,26030.0,26029.0,0.82343074]
[1693549202715,0.44239,26030.0,26029.0,0.82343074]
[1693549203129,0.49893837,26030.0,26029.0,0.82343074]
[1693549203521,0.55362744,26030.0,26029.0,0.82343074]
[1693549203823,0.49893837,26030.0,26029.0,0.82343074]
[1693549205127,0.49893837,26030.0,26029.0,0.56913849]
[1693549205322,0.55362744,26030.0,26029.0,0.56913849]
[1693549205519,0.49893837,26030.0,26029.0,0.4154]
[1693549207226,0.55362744,26030.0,26029.0,0.82343346]
[1693549207528,0.49893837,26030.0,26029.0,0.82343346]
[1693549208522,0.55362744,26030.0,26029.0,0.11530487]
[1693549209323,0.55463744,26030.0,26027.0,0.02007635]
[1693549209523,0.01899,26027.0,26023.0,0.15373849]
[1693549209723,0.45337,26023.0,26022.0,0.56913849]
[1693549210025,0.54562744,26023.0,26022.0,0.78551477]
[1693549210428,0.4154,26023.0,26022.0,0.84206315]
[1693549210629,0.41924,26023.0,26022.0,0.84206315]
[1693549211134,0.58174,26023.0,26022.0,0.89675222]
[1693549211329,0.4234,26023.0,26022.0,0.84206315]
[1693549211528,0.4234,26023.0,26022.0,0.89675222]
[1693549211718,0.4234,26023.0,26022.0,0.91675222]
[1693549211921,0.008,26023.0,26022.0,0.91675222]
[1693549212831,0.008,26023.0,26022.0,0.91674481]
[1693549213626,0.008,26023.0,26022.0,0.66240594]
[1693549213823,0.008,26023.0,26022.0,0.54663745]
[1693549215531,0.008,26023.0,26022.0,0.52663745]
[1693549216530,0.008,26023.0,26022.0,0.54663745]
[1693549217136,0.008,26023.0,26022.0,0.80096168]
[1693549218537,0.008,26023.0,26022.0,0.80095078]
[1693549221337,0.00057642,26025.0,26023.0,0.00669601]
[1693549221538,0.00057642,26025.0,26024.0,0.52663745]
[1693549221731,0.00057642,26025.0,26024.0,0.68573745]
[1693549222539,0.00457642,26025.0,26024.0,0.68573745]
[1693549222937,0.08011479,26025.0,26024.0,0.5745]
[1693549223439,0.07811479,26025.0,26024.0,0.63804838]
[1693549223644,0.02156642,26025.0,26024.0,0.69273745]
[1693549223832,0.02356642,26025.0,26024.0,0.69673745]
[1693549236759,0.02356642,26025.0,26024.0,0.64204838]
[1693549237052,0.02356642,26025.0,26024.0,0.69673745]
[1693549237443,0.00457642,26025.0,26024.0,0.69673745]
[1693549237646,0.02356642,26025.0,26024.0,0.69673745]
[1693549238350,0.13480386,26025.0,26024.0,0.5855]
[1693549238551,0.55020386,26025.0,26024.0,0.1701]
[1693549238751,0.55020386,26025.0,26024.0,0.011]
[1693549240548,0.49551479,26025.0,26024.0,0.011]
[1693549240851,0.55020386,26025.0,26024.0,0.011]
[1693549245367,0.49551479,26025.0,26024.0,0.011]
[1693549246451,0.55020386,26025.0,26024.0,0.011]
[1693549246752,0.49551479,26025.0,26024.0,0.011]
[1693549247258,0.55020386,26025.0,26024.0,0.011]
[1693549247862,0.49551479,26025.0,26024.0,0.011]
[1693549250262,0.55020386,26025.0,26024.0,0.011]
[1693549257366,0.57020386,26025.0,26024.0,0.011]
[1693549260258,0.43896642,26025.0,26024.0,0.06754838]
[1693549261169,0.49551479,26025.0,26024.0,0.06754838]
[1693549261368,0.49551479,26025.0,26024.0,0.011]
[1693549262066,0.49551479,26025.0,26024.0,0.06568907]
[1693549262269,0.43896642,26025.0,26024.0,0.011]
[1693549264169,0.55020386,26025.0,26024.0,0.011]
[1693549265069,0.49551479,26025.0,26024.0,0.011]
[1693549265261,0.49551479,26025.0,26024.0,0.06568907]
[1693549265468,0.43896642,26025.0,26024.0,0.011]
[1693549266167,0.43896642,26025.0,26024.0,0.12223745]
[1693549267961,0.43896642,26025.0,26024.0,0.53763745]
[1693549268576,0.00457642,26025.0,26024.0,0.55763745]
[1693549268777,0.00457642,26025.0,26024.0,0.53763745]
[1693549268977,0.00457642,26025.0,26024.0,0.55763745]
[1693549269976,0.1664,26029.0,26024.0,1.84119852]
[1693549270163,0.44565256,26031.0,26028.0,0.53062975]
[1693549270475,0.44565256,26031.0,26029.0,0.52663745]
[1693549270674,0.44565256,26031.0,26029.0,0.4154]
[1693549270868,0.44565256,26031.0,26030.0,0.11123745]
[1693549271077,0.4154,26031.0,26030.0,0.11123745]
[1693549271369,0.43439,26031.0,26030.0,0.11123745]
[1693549273071,0.45339,26031.0,26030.0,0.11123745]
[1693549273272,0.4504,26031.0,26030.0,0.13323745]
[1693549273573,0.4504,26031.0,26030.0,0.55063745]
[1693549273574,0.035,26031.0,26030.0,0.55063745]
[1693549273771,0.035,26031.0,26030.0,0.9658672]
[1693549275874,0.035,26031.0,26030.0,0.85063745]
[1693549276179,0.018,26031.0,26030.0,0.85763745]
[1693549276679,0.018,26031.0,26030.0,0.86763745]
[1693549276680,0.004,26031.0,26030.0,0.86763745]
[1693549277373,0.030728,26034.0,26030.0,1.44325976]
[1693549277572,0.01899,26034.0,26033.0,0.4154]
[1693549277968,0.01899,26034.0,26033.0,0.52663745]
[1693549278374,0.05654837,26035.0,26033.0,0.52663745]
[1693549278575,0.05654837,26035.0,26034.0,0.4154]
[1693549278782,0.07553837,26035.0,26034.0,0.47008907]
[1693549281278,0.07553837,26035.0,26034.0,0.47208907]
[1693549281474,0.11153837,26035.0,26034.0,0.47208907]
[1693549282082,0.14753837,26035.0,26034.0,0.4194]
[1693549283082,0.14753837,26035.0,26034.0,0.63868907]
[1693549283274,0.09099,26035.0,26034.0,0.63868907]
[1693549283476,0.09099,26035.0,26034.0,0.69523745]
[1693549288984,0.05799,26035.0,26034.0,0.71523745]
[1693549289384,0.039,26035.0,26034.0,0.71523745]
[1693549289586,0.05799,26035.0,26034.0,0.71523745]
[1693549289985,0.04899,26035.0,26034.0,0.69423745]
[1693549290283,0.05299,26035.0,26034.0,0.71823745]
[1693549290675,0.02699,26035.0,26034.0,0.74223745]
[1693549291085,0.008,26035.0,26034.0,0.74223745]
[1693549291286,0.02699,26035.0,26034.0,0.74223745]
[1693549316000,0.02699,26035.0,26034.0,0.8574672]
[1693549319707,0.02699,26035.0,26034.0,0.74223745]
[1693549329712,0.02699,26035.0,26034.0,0.8574672]
[1693549341714,0.02699,26035.0,26034.0,0.74223745]
[1693549341913,0.02699,26035.0,26034.0,0.8575263]
[1693549345429,0.02699,26035.0,26034.0,1.43291029]
[1693549345613,0.19590443,26039.0,26036.0,0.3]
[1693549345814,0.00384,26039.0,26038.0,0.53067257]
[1693549346122,0.34926443,26040.0,26038.0,0.53067257]
[1693549346123,0.19206443,26040.0,26038.0,0.49605129]
[1693549346325,0.19206443,26040.0,26039.0,0.4154]
[1693549346521,0.19206443,26040.0,26039.0,1.52221263]
[1693549346824,0.19206443,26041.0,26039.0,1.63345008]
[1693549347127,0.19206443,26041.0,26040.0,1.52221263]
[1693549348220,0.19206443,26041.0,26040.0,1.63345008]
[1693549348825,0.22906443,26041.0,26040.0,1.63645008]
[1693549349422,0.22906443,26041.0,26040.0,1.63945008]
[1693549349615,0.26606443,26041.0,26040.0,1.63945008]
[1693549351122,0.26989443,26041.0,26040.0,1.63945008]
[1693549353927,0.07783,26041.0,26040.0,1.80185008]
[1693549356839,0.26989443,26041.0,26040.0,1.80185008]
[1693549357624,0.07783,26041.0,26040.0,1.80185008]
[1693549364625,0.07783,26041.0,26040.0,1.80569008]
[1693549367733,0.074,26041.0,26040.0,1.80569008]
[1693549372245,0.13054837,26041.0,26040.0,1.7491417]
[1693549373039,0.074,26041.0,26040.0,1.80569008]
[1693549379133,0.26606443,26041.0,26040.0,1.80569008]
[1693549384446,0.26989443,26041.0,26040.0,1.80569008]
[1693549384656,0.07783,26041.0,26040.0,1.52821263]
[1693549385342,0.13437837,26041.0,26040.0,1.52821263]
[1693549385748,0.18906744,26041.0,26040.0,1.52821263]
[1693549385943,0.13437837,26041.0,26040.0,1.52821263]
[1693549386651,0.18906744,26041.0,26040.0,1.52821263]
[1693549387650,0.13437837,26041.0,26040.0,1.52821263]
[1693549389248,0.18906744,26041.0,26040.0,1.52821263]
[1693549389453,0.13437837,26041.0,26040.0,1.52821263]
[1693549392757,0.13437837,26041.0,26040.0,1.5829017]
[1693549392945,0.13437837,26041.0,26040.0,1.52821263]
[1693549396761,0.13437837,26041.0,26040.0,1.5829017]
[1693549397056,0.13437837,26041.0,26040.0,1.52821263]
[1693549397258,0.13609461,26041.0,26040.0,1.63945008]
[1693549397449,0.13609461,26041.0,26040.0,1.52821263]
[1693549398459,0.19264298,26041.0,26040.0,1.52821263]
[1693549398866,0.83851526,26041.0,26040.0,1.07674832]
[1693549399257,0.62804298,26041.0,26040.0,1.0643319]
[1693549399455,0.73834914,26041.0,26040.0,0.006]
[1693549399757,0.89599603,26041.0,26036.0,0.4154]
[1693549399956,0.19579257,26037.0,26036.0,0.4154]
[1693549400261,0.07851907,26037.0,26036.0,0.4154]
[1693549400654,0.32699257,26037.0,26036.0,0.4154]
[1693549400954,0.13506744,26037.0,26036.0,0.4154]
[1693549401462,0.32695066,26037.0,26036.0,0.4154]
[1693549401660,0.32695066,26037.0,26036.0,0.4184]
[1693549401858,0.13506744,26037.0,26036.0,0.4184]
[1693549402260,0.32694727,26037.0,26036.0,0.4154]
[1693549402558,0.32694727,26037.0,26036.0,0.4184]
[1693549403053,0.32694727,26037.0,26036.0,0.4154]
[1693549403253,0.31694727,26037.0,26036.0,0.4164]
[1693549403454,0.33694727,26037.0,26036.0,0.4164]
[1693549404060,0.34994727,26037.0,26036.0,0.4174]
[1693549404360,0.34994727,26037.0,26036.0,1.52443531]
[1693549404758,0.32994727,26037.0,26036.0,1.52443531]
[1693549404957,0.34994727,26037.0,26036.0,1.52443531]
[1693549406662,0.15806744,26037.0,26036.0,1.52443531]
[1693549406961,0.57346744,26037.0,26036.0,1.10903531]
[1693549408165,0.55346744,26037.0,26036.0,1.10903531]
[1693549409269,0.74534727,26037.0,26036.0,1.10903531]
[1693549409768,0.74534727,26037.0,26036.0,1.10902455]
[1693549411261,0.77575621,26037.0,26036.0,1.10902455]
[1693549413676,0.79575621,26037.0,26036.0,1.10902455]
[1693549414464,0.60387638,26037.0,26036.0,1.10902455]
[1693549416273,0.54918731,26037.0,26036.0,1.10902455]
[1693549416877,0.60387638,26037.0,26036.0,1.10902455]
[1693549418775,0.54918731,26037.0,26036.0,1.10902455]
[1693549418962,0.60387638,26037.0,26036.0,1.10902455]
[1693549419162,0.54918731,26037.0,26036.0,1.10902455]
[1693549419776,0.52918731,26037.0,26036.0,1.10902455]
[1693549420379,0.58387638,26037.0,26036.0,1.10902455]
[1693549420572,0.52918731,26037.0,26036.0,1.10902455]
[1693549421077,0.58387638,26037.0,26036.0,1.10902455]
[1693549421878,0.52918731,26037.0,26036.0,1.10902455]
[1693549422075,0.52918731,26037.0,26036.0,1.16371362]
[1693549422475,0.52535731,26037.0,26036.0,1.10902455]
[1693549422679,0.05340894,26037.0,26036.0,1.57911362]
[1693549422882,0.05340894,26037.0,26036.0,1.58295362]
[1693549423869,0.10995731,26037.0,26036.0,1.58295362]
[1693549432191,0.10995731,26037.0,26036.0,1.52826455]
[1693549432493,0.10995731,26037.0,26036.0,1.52442455]
[1693549433280,0.10995731,26037.0,26036.0,1.57911362]
[1693549435787,0.10995731,26037.0,26036.0,1.52442455]
[1693549436696,0.10995731,26037.0,26036.0,1.57911362]
[1693549439097,0.05340894,26037.0,26036.0,1.635662]
[1693549439292,0.05340894,26037.0,26036.0,1.655662]
[1693549439598,0.05340894,26037.0,26036.0,1.659502]
[1693549441504,0.24515938,26037.0,26036.0,1.659502]
[1693549442090,0.30170775,26037.0,26036.0,1.54442455]
[1693549442696,0.30170775,26037.0,26036.0,1.52442455]
[1693549442999,0.30170775,26037.0,26036.0,1.54442455]
[1693549444000,0.35639682,26037.0,26036.0,1.52442455]
[1693549444202,0.30170775,26037.0,26036.0,1.59911362]
[1693549444394,0.30170775,26037.0,26036.0,1.52442455]
[1693549444997,0.30170775,26037.0,26036.0,1.57911362]
[1693549445508,0.30170775,26037.0,26036.0,1.52442455]
[1693549447303,0.10995731,26037.0,26036.0,1.52442455]
[1693549450804,0.10995731,26037.0,26036.0,1.57911362]
[1693549452807,0.10995731,26037.0,26036.0,1.52442455]
[1693549453004,0.10995731,26037.0,26036.0,1.57911362]
[1693549453206,0.10995731,26037.0,26036.0,1.52442455]
[1693549453606,0.35668031,26037.0,26036.0,1.52442455]
[1693549453912,0.30199124,26037.0,26036.0,1.52442455]
[1693549454805,0.30199124,26037.0,26036.0,1.57911362]
[1693549456010,0.30199124,26037.0,26036.0,1.52442455]
[1693549456213,0.30199124,26037.0,26036.0,1.57911362]
[1693549456699,0.30199124,26037.0,26036.0,1.52442455]
[1693549462717,0.30199124,26037.0,26036.0,1.57911362]
[1693549463318,0.30199124,26037.0,26036.0,1.52442455]
[1693549465419,0.30199124,26037.0,26036.0,1.60116304]
[1693549466717,0.30199124,26037.0,26036.0,1.52442455]
[1693549467120,0.36051031,26037.0,26036.0,1.60116304]
[1693549469422,0.11378731,26037.0,26036.0,1.52442455]
[1693549470128,0.16847638,26037.0,26036.0,1.52442455]
[1693549470320,0.11378731,26037.0,26036.0,1.52442455]
[1693549470721,0.16847638,26037.0,26036.0,1.52442455]
[1693549471219,0.11378731,26037.0,26036.0,1.52442455]
[1693549472124,0.16847638,26037.0,26036.0,1.52442455]
[1693549473821,0.11378731,26037.0,26036.0,1.52442455]
[1693549474123,0.16847638,26037.0,26036.0,1.52442455]
[1693549475623,0.11378731,26037.0,26036.0,1.52442455]
[1693549476426,0.30590201,26037.0,26036.0,1.60116304]
[1693549476818,0.36059108,26037.0,26036.0,1.60116304]
[1693549477018,0.77599108,26037.0,26036.0,1.18576304]
[1693549478126,0.72130201,26037.0,26036.0,1.18576304]
[1693549480425,0.77599108,26037.0,26036.0,1.18576304]
[1693549480626,0.72130201,26037.0,26036.0,1.18576304]
[1693549482536,0.24935364,26037.0,26036.0,1.71240049]
[1693549483433,0.24936008,26037.0,26036.0,1.71240049]
[1693549483934,0.30590845,26037.0,26036.0,1.65771142]
[1693549484229,0.30590845,26037.0,26036.0,1.71240049]
[1693549484429,0.24553008,26037.0,26036.0,1.635662]
[1693549484736,0.05340894,26037.0,26036.0,1.635662]
[1693549486836,0.05340894,26037.0,26036.0,1.57911362]
[1693549487637,0.24553095,26037.0,26036.0,1.65585211]
[1693549488034,0.24553095,26037.0,26036.0,1.65969211]
[1693549488536,0.24553095,26037.0,26036.0,1.71624049]
[1693549488927,0.05340894,26037.0,26036.0,1.71624049]
[1693549491540,0.05340894,26037.0,26036.0,1.639502]
[1693549493742,0.05340894,26037.0,26036.0,1.71632691]
[1693549499452,0.05340894,26037.0,26036.0,1.71248691]
[1693549499650,0.24553095,26037.0,26036.0,1.71248691]
[1693549500046,0.24553095,26037.0,26036.0,1.60124946]
[1693549500256,0.24936095,26037.0,26036.0,1.52442455]
[1693549500857,0.36059839,26037.0,26036.0,1.52442455]
[1693549501850,0.30590932,26037.0,26036.0,1.52442455]
[1693549505361,0.30590932,26037.0,26036.0,1.57911362]
[1693549505555,0.30590932,26037.0,26036.0,1.52442455]
[1693549506266,0.30590932,26037.0,26036.0,1.57911362]
[1693549506856,0.30590932,26037.0,26036.0,1.52442455]
[1693549507763,0.30590932,26037.0,26036.0,1.60124946]
[1693549508564,0.24936095,26037.0,26036.0,1.60124946]
[1693549508968,0.24936095,26037.0,26036.0,1.57911362]
[1693549509157,0.24936095,26037.0,26036.0,1.65593853]
[1693549509762,0.24936095,26037.0,26036.0,1.71248691]
[1693549510565,0.24936095,26037.0,26036.0,1.635662]
[1693549510765,0.30590932,26037.0,26036.0,1.65593853]
[1693549512470,0.30590932,26037.0,26036.0,1.60124946]
[1693549512767,0.30590932,26037.0,26036.0,1.65593853]
[1693549513266,0.30590932,26037.0,26036.0,1.60124946]
[1693549513467,0.30590932,26037.0,26036.0,1.65593853]
[1693549513667,0.30590932,26037.0,26036.0,1.60124946]
[1693549514764,0.30590932,26037.0,26036.0,1.52442455]
[1693549515466,0.30590932,26037.0,26036.0,1.57911362]
[1693549516168,0.30590932,26037.0,26036.0,1.52442455]
[1693549519262,0.30585212,26037.0,26036.0,1.52442455]
[1693549519669,0.24930375,26037.0,26036.0,1.635662]
[1693549521665,0.24930375,26037.0,26036.0,1.71249047]
[1693549523366,0.24930375,26037.0,26036.0,1.60125302]
[1693549523578,0.30585212,26037.0,26036.0,1.65594209]
[1693549523770,0.30585212,26037.0,26036.0,1.60125302]
[1693549523973,0.30585212,26037.0,26036.0,1.65594209]
[1693549524167,0.30585212,26037.0,26036.0,1.60125302]
[1693549525375,0.36054119,26037.0,26036.0,1.60125302]
[1693549526272,0.35671119,26037.0,26036.0,1.60125302]
[1693549527075,0.30202212,26037.0,26036.0,1.60125302]
[1693549527780,0.30202212,26037.0,26036.0,1.65594209]
[1693549528076,0.30202212,26037.0,26036.0,1.60125302]
[1693549528377,0.30202212,26037.0,26036.0,1.65594209]